Cogmind - Beta 15 @@@ ROGUE MODE // 2025.09.14 @ 18:09:11 Player: Runagate Result: Destroyed by S-10 Pest with Light Assault Rifle Performance ------------- Evolutions (1) 500 Regions Visited (2) 400 Robots Destroyed (31) 155 Value Destroyed (608) 608 Prototype IDs (0) 0 Alien Tech Used (0) 0 Bonus (0) 0 TOTAL SCORE: 1663 Bonus ------- None Cogmind --------- Core Integrity 0/400 Matter 300/300 Energy 100/100 System Corruption 3% Temperature Cool (0) Movement Core (50) Location -9/Materials Parts ------- > --- POWER (1) -------- (None) > --- PROPULSION (2) --- (None) > --- UTILITY (4) ------ (None) > --- WEAPON (2) ------- (None) > --- INVENTORY (5) ---- Light Treads Seismic Detector EM Pulse Gun Maul Maul Peak State ------------ > --- POWER ------------ Ion Engine > --- PROPULSION ------- Light Treads Light Treads > --- UTILITY ---------- Large Storage Unit Sensor Array Signal Interpreter Hardened Light Armor Plating > --- WEAPON ----------- Maul Maul > --- INVENTORY -------- Ion Engine Aluminum Leg Aluminum Leg Medium Storage Unit Seismic Detector Seismic Detector ECM Suite Hardened Light Armor Plating EM Pulse Gun [Rating: 13] Favorites ----------- Power Ion Engine Engine Ion Engine Propulsion Light Treads Treads Light Treads Leg Aluminum Leg Utility Sensor Array Device Sensor Array Storage Medium Storage Unit Processor Signal Interpreter Protection Hardened Light Armor Plating Weapon Mace Energy Gun Medium Laser Impact Weapon Mace Build | -11 -10 -9 ------- Run | Yrd Mat Mat Slots Evolved 2 | . . 2 Power . | . . . Propulsion . | . . . Utility 2 | . . 2 Weapon . | . . . Parts Attached 26 | 7 7 12 Power 4 | 1 1 2 Engine 4 | 1 1 2 Core . | . . . Reactor . | . . . Propulsion 5 | 2 . 3 Treads 3 | 2 . 1 Leg 2 | . . 2 Wheel . | . . . Hover . | . . . Flight . | . . . Utility 9 | 2 2 5 Device 3 | 1 1 1 Storage 3 | 1 1 1 Processor 1 | . . 1 Hackware . | . . . Protection 2 | . . 2 Artifact . | . . . Weapon 8 | 2 4 2 Energy Gun 2 | 2 . . Energy Cannon . | . . . Ballistic Gun . | . . . Ballistic Cannon . | . . . Launcher . | . . . Special Weapon . | . . . Impact Weapon 6 | . 4 2 Slashing Weapon . | . . . Piercing Weapon . | . . . Special Melee Weapon . | . . . Unidentified Prototypes . | . . . Corrupted Parts 1 | . . 1 System Corruption 3 | . . 3 Parts Lost 5 | . . 5 Power 2 | . . 2 Propulsion 1 | . . 1 Utility 2 | . . 2 Weapon . | . . . Highest Loss Streak 3 | . . 3 To Critical Strikes . | . . . Average Backups 8 | 3 9 9 Power . | . 1 . Propulsion 1 | 1 2 1 Utility 4 | . 4 5 Weapon 1 | . 1 2 Tool/Special . | . . . Unused Backups 6 | . 2 4 Power . | . . . Propulsion . | . . . Utility 5 | . 2 3 Weapon 1 | . . 1 Tool/Special . | . . . Average Slot Usage (%) 98 | . 99 97 Engine 11 | . 14 10 Treads 14 | . 27 9 Leg 8 | . . 12 Device 11 | . 14 10 Storage 11 | . 14 10 Processor 7 | . . 10 Protection 7 | . . 10 Impact Weapon 22 | . 25 21 Peak Build Rating 13 | 7 10 13 Average Rating 10 | 5 9 11 On Entrance 5 | . 7 10 Naked Turns 23 | . . 23 Heaviest Build 37 | 14 22 37 Greatest Support 40 | 40 40 40 Greatest Overweight (x) 1 | . . 1 Average Overweight (x) . | . . . Largest Inventory Capacity 15 | 8 10 15 Average Capacity 11 | 7 9 13 Most Carried 11 | 5 10 11 Average Carried 8 | 3 9 9 Final Capacity 10 | 8 10 5 Final Carried 10 | 5 10 5 Class Distribution -------------------- 100% | Mutant Dominant Class ---------------- Mutant | -10/Materials Mutant | -9/Materials Resources | -11 -10 -9 ----------- Run | Yrd Mat Mat Matter Collected 516 | 270 80 166 Remotely . | . . . Salvage Created 928 | 163 260 505 Parts 36 | 13 9 14 Haulers Intercepted 1 | . 1 . Recyclers Shooed . | . . . Parts Field Recycled . | . . . Retrieved Matter . | . . . Parts Self-Destructed . | . . . Prevented . | . . . Kills | -11 -10 -9 ------- Run | Yrd Mat Mat Combat Hostiles Destroyed 20 | . 4 16 Melee 15 | . 3 12 Classes Destroyed 10 | 3 3 4 Worker 2 | 1 . 1 Tunneler 3 | 3 . . Hauler 1 | . 1 . Recycler 3 | 1 1 1 Operator 1 | . . 1 Watcher 1 | . 1 . Swarmer 9 | . . 9 Grunt 6 | . 4 2 Brawler 1 | . . 1 Sentry 4 | . . 4 Best Kill Streak 6 | 4 1 6 Combat Bots Only 6 | . 1 6 Max Kills in Single Turn 1 | 1 1 1 Gunslinging . | . . . Exploded . | . . . Melee 1 | . 1 1 Uniques/NPCs Destroyed . | . . . Combat | -11 -10 -9 -------- Run | Yrd Mat Mat Hostile Shots Fired 206 | . 14 192 Missed 71 | . 5 66 Hits 135 | . 9 126 Projectile 135 | . 9 126 Critical Strikes 2 | . . 2 Damage Taken 1384 | . 154 1230 Core 412 | . 10 402 Absorbed by Shields . | . . . Regen/Repaired (Parts) 24 | . 24 . Core Remaining (%) 98 | 100 96 . Volleys Fired 7 | 7 . . Largest 2 | 2 . . Hottest 90 | 90 . . Shots Fired 14 | 14 . . Gun 14 | 14 . . Cannon . | . . . Launcher . | . . . Special . | . . . Kinetic . | . . . Thermal 14 | 14 . . Explosive . | . . . Electromagnetic . | . . . Robot Hit Streak 6 | 6 . . Robot Miss Streak 2 | 2 . . Penetration Max . | . . . Secondary Targets . | . . . Shots Hit Robots 64 | 8 14 42 Core Hits 17 | 6 3 8 Critical Kills 2 | . 1 1 Critical Parts Destroyed 11 | . 2 9 Critical Strikes 13 | . 3 10 Smash 13 | . 3 10 Melee Attacks 90 | . 21 69 Impact 90 | . 21 69 Slashing . | . . . Piercing . | . . . Sneak Attacks 7 | . 3 4 Combat Hostiles 2 | . 1 1 Follow-up Attacks 7 | . 1 6 Damage Inflicted 2200 | 95 638 1467 Guns 95 | 95 . . Cannons . | . . . Explosions . | . . . Melee 2105 | . 638 1467 Ramming . | . . . Kinetic . | . . . Thermal 95 | 95 . . Explosive . | . . . Electromagnetic . | . . . Impact 2105 | . 638 1467 Slashing . | . . . Piercing . | . . . Highest Corruption 3 | . . 3 Average Corruption 3 | . . 3 Corruption Purged . | . . . Corruption Blocked . | . . . Effects 12 | . . 12 Message Errors 2 | . . 2 Matter Fused 2 | . . 2 Heat Flow Errors 1 | . . 1 Energy Discharges 1 | . . 1 Parts Rejected 1 | . . 1 Data Loss (minor) 4 | . . 4 Data Loss (major) 1 | . . 1 Overload Shots . | . . . Overflow Damage 673 | . 163 510 Projectiles . | . . . Explosions . | . . . Melee 673 | . 163 510 Knockbacks 6 | . 4 2 Impact 6 | . 4 2 Kinetic . | . . . Secondary . | . . . Self-Inflicted Damage . | . . . Shots . | . . . Rammed . | . . . Targets Rammed . | . . . Kicked . | . . . Crushed . | . . . Highest Temperature 276 | 60 . 276 Average Temperature 62 | 25 . 132 Received Heat Transfer 225 | . 60 165 Siege Activations . | . . . Martial Activations . | . . . Shielding Activations . | . . . Robots Disrupted . | . . . Combat Hostiles . | . . . Robots Corrupted 7 | . 2 5 Combat Hostiles 5 | . 1 4 Parts Fried 15 | . 4 11 Impact Corruptions 31 | . 7 24 Robots Melted . | . . . Combat Hostiles . | . . . Parts Melted 3 | 3 . . Heat Transferred 272 | 272 . . Parts Sabotaged . | . . . Parts Stolen . | . . . Parts Stripped . | . . . Power Chain Reactions . | . . . Alert | -11 -10 -9 ------- Run | Yrd Mat Mat Maximum Alert Level 1 | . . 1 Low Security (%) 98 | 100 100 98 Level 1 1 | . . 1 Level 2 . | . . . Level 3 . | . . . Level 4 . | . . . Level 5 . | . . . High Security . | . . . Max Security . | . . . Peak Influence 207 | 10 120 207 Initial . | . . . Average 78 | . 36 102 Influence Increases 834 | 25 207 602 Destroy 0b10 Robot/C 400 | . 80 320 Destroy 0b10 Robot/NC 55 | 25 15 15 Destroy Leader 114 | . 24 90 Successful Hack 33 | . 13 20 Disable Machine 15 | . 15 . Destroy Structure 7 | . . 7 Lose Combat Pursuer 210 | . 60 150 Influence Decreases 681 | 25 207 449 Time Decay 631 | 25 207 399 Lost Part 50 | . . 50 Squads Dispatched 3 | . 1 2 Investigation . | . . . Extermination . | . . . Reinforcement 3 | . 1 2 Assault . | . . . Garrison . | . . . Intercept . | . . . Searches Triggered . | . . . Construction Impeded . | . . . Haulers Reinforced . | . . . Active Scanning Responses . | . . . Cargo Convoy Interrupts . | . . . Stealth | -11 -10 -9 --------- Run | Yrd Mat Mat Distress Signals 3 | . . 3 Communications Jammed . | . . . Distress Signals . | . . . Times Spotted 41 | . 9 32 Peak Tracking Total 6 | . 3 6 Tactical Retreats 10 | . 3 7 Traps | -11 -10 -9 ------- Run | Yrd Mat Mat Traps Triggered 1 | . 1 . Indirectly . | . . . Trap Hack Attempts . | . . . Triggered . | . . . Disarmed . | . . . Reprogrammed . | . . . Reused . | . . . Traps Extracted . | . . . Installed . | . . . Triggered . | . . . Machines | -11 -10 -9 ---------- Run | Yrd Mat Mat Machines Disabled 1 | . 1 . Max in Single Turn 1 | . 1 . Machines Repaired . | . . . Machines Dismantled . | . . . Machines Sabotaged . | . . . Overloaded Fab Kills . | . . . Hacking | -11 -10 -9 --------- Run | Yrd Mat Mat Machines Accessed 7 | . 2 5 Terminals 6 | . 1 5 Fabricators . | . . . Repair Stations 1 | . 1 . Recycling Units . | . . . Scanalyzers . | . . . Garrison Access . | . . . Total Hacks 20 | . 7 13 Successful 12 | . 5 7 Failed 8 | . 2 6 Catastrophic 3 | . 1 2 Database Lockouts . | . . . Manual 12 | . 4 8 Terminals 17 | . 4 13 Fabricators . | . . . Repair Stations 3 | . 3 . Recycling Units . | . . . Scanalyzers . | . . . Garrison Access . | . . . Terminal Hacks 10 | . 3 7 Part Schematic 1 | . . 1 Alert Level 1 | . . 1 Locate Traps 3 | . 1 2 Patrol Status 2 | . 1 1 Registered Components 1 | . . 1 Zone Layout 2 | . 1 1 Fabricator Hacks . | . . . Repair Station Hacks 2 | . 2 . Scan Component 1 | . 1 . Repair 1 | . 1 . Recycling Unit Hacks . | . . . Scanalyzer . | . . . Garrison Access Hacks . | . . . Unauthorized Hacks . | . . . Terminals . | . . . Fabricators . | . . . Repair Stations . | . . . Recycling Units . | . . . Scanalyzers . | . . . Garrison Access . | . . . Data Cores Recovered . | . . . Used . | . . . Hacking Detections 6 | . 2 4 Full Trace Events 1 | . 1 . Feedback Events . | . . . Feedback Blocked . | . . . Robot Schematics Acquired . | . . . Robots Built . | . . . Authchips . | . . . Time . | . . . Total Robot Build Rating . | . . . Part Schematics Acquired 1 | . . 1 Parts Built . | . . . Authchips . | . . . Time . | . . . Total Part Build Rating . | . . . Parts Repaired 1 | . 1 . Time 26 | . 26 . Parts Recycled . | . . . Recycled Matter . | . . . Retrieved Matter . | . . . Retrieved Components . | . . . Parts Scanalyzed . | . . . Part Schematics Acquired . | . . . Parts Damaged . | . . . Bothacking | -11 -10 -9 ------------ Run | Yrd Mat Mat Used RIF Installer . | . . . Robots Hacked . | . . . Non-combat . | . . . Combat . | . . . Robot Hacks Applied . | . . . Relay Couplers Released . | . . . Fabnet Peak Effective % . | . . . Robots Rewired . | . . . Allies Hacked . | . . . Hacks Repelled . | . . . Allies | -11 -10 -9 -------- Run | Yrd Mat Mat Total Allies . | . . . Largest Group . | . . . Highest-Rated Group . | . . . Highest-Rated Ally . | . . . Total Orders . | . . . Ally Attacks . | . . . Total Damage . | . . . Kills . | . . . Allies Corrupted . | . . . Allies Melted . | . . . Intel | -11 -10 -9 ------- Run | Yrd Mat Mat Active Infowar (turns) 2133 | 74 564 1495 Sensors 1495 | . . 1495 Seismic 640 | 74 564 2 Robot Analysis Total . | . . . Derelict Logs Recovered . | . . . Drone Launches . | . . . Drone Recoveries . | . . . Exploration | -11 -10 -9 ------------- Run | Yrd Mat Mat Turns Passed 2262 | 179 564 1519 Spaces Moved 777 | 86 227 464 Core 3 | 3 . . Treads 478 | 83 227 168 Legs 296 | . . 296 Wheels . | . . . Hover . | . . . Flight . | . . . Fastest Speed 50 | 50 160 160 Average Speed 171 | 156 160 179 Slowest Speed 190 | 160 160 190 Overloaded Moves . | . . . Propulsion Burnouts . | . . . Robots Hopped . | . . . Potential Cave-ins . | . . . Cave-ins Triggered . | . . . Exploration Rate (%) 29 | 6 31 52 Regions Visited 2 Branch Regions . Pre-discovered Areas . | . . . Known Exits Taken . | . . . Unknown Exits Taken 2 | 1 1 . Scrap Searched . | . . . Spaces Dug 8 | . . 8 Terrain Destroyed 8 | . . 8 Melee 8 | . . 8 Projectile . | . . . AOE . | . . . Terrain Rammed . | . . . Walls Destroyed . | . . . Machines Disabled . | . . . Actions | -11 -10 -9 --------- Run | Yrd Mat Mat Total 1545 | 113 402 1030 Wait 627 | 9 135 483 Move 775 | 85 226 464 Hop . | . . . Pick Up 13 | 5 8 . Fast Attach 11 | 7 1 3 Attach 7 | . . 7 Detach 5 | . . 5 Swap 13 | . 7 6 Drop 8 | . 7 1 Fire 7 | 7 . . Melee 79 | . 18 61 Ram . | . . . Kick . | . . . Crush . | . . . Escape Stasis . | . . . Rewire . | . . . Trap . | . . . Miscellaneous . | . . . Route ------- -11/Scrapyard -10/Materials -9/Materials (discovered 1 exit: [*Min]) History --------- Turn | Location | Event 12 | -11/Scrapyard | Discovered new exit (range 15) 180 | -11/Scrapyard | Entered Materials 181 | -10/Materials | Met a group of wandering Federalists 328 | -10/Materials | Build established: Mutant 522 | -10/Materials | Repaired Lgt. Treads 702 | -10/Materials | Discovered new exit (range 16) 744 | -10/Materials | Entered another Materials area 744 | -9/Materials | Evolved 2 slots: Utility x2 1309 | -9/Materials | Discovered new exit (range 12) 2236 | -9/Materials | Core integrity fell below 50% 2240 | -9/Materials | Released all parts (6) 2252 | -9/Materials | Core integrity fell below 20% 2263 | -9/Materials | Destroyed by S-10 Pest with Light Assault Rifle Last Messages --------------- 02098_ S-10 Pest system corrupted by crushing effect. 02098_ S-10 Pest destroyed. 02100_ K-01 Serf collects debris. 02105_ K-01 Serf cleans the Hadron Collector. 02118_ K-01 Serf collects debris. 02228_ T-07 Excavator is excavating. 02234_ Lgt. Armor Plating destroyed. 02236_ T-07 Excavator is excavating. 02238_ Aluminum Leg destroyed. 02239_ Sensor Array destroyed. 02240_ Released Mace. 02240_ Released Aluminum Leg. 02240_ Released Signal Interpreter. 02240_ Released Lrg. Storage Unit. 02240_ Released Lgt. Ion Engine. 02247_ S-10 Pest destroyed. 02249_ R-06 Scavenger collects Lgt. Treads. 02255_ S-10 Pest destroyed. Map ----- +----------------------------------------------------+ | """"" ??????????# ### ## # | | """""???????????#[ "#?# ## # | | ??""????????????# T#?# ###+######? | | ????????????????# "#?# #?# #?????? | | ????????????????# ### #?# #?????? | | ????????????????# + #?# #?????? | | ????????????????# ! ### #?# #?????? | | ????????????????###+#?#####?# #?????? | | ?????????????????? ???????# #?????? | | ?????????????????? ????[??# #?????? | | ????????????????? ??????# #?????? | | ?????????????????""" ??????# #?????? | | ????????????????#"T ?????# #?????? | | ????????????????#""" ?????# #?????? | | ????????????????# ????# #?????? | | ?????????????+????#####+##### #?????? | | ????????????? ##### ##????? | | ????????????? #????? | | ????????????? #????? | | ????????????? a #????? | | ??????????????? ##### #????? | | ????????????????????# #????? | | ????????????????????# #????? | | ????????????????????# ! #????? | | ????????????????????# !! #????? | | ????????????????????# ] !@/ //#? | | ????????????????????# !=!!! //#? | | ????????????????????# * ! [[#? | | ????????????????????# [[#? | | ????????????????????# !!#? | | ????????????????????# !!#? | | ????????????????????##s[ ### #####? | | ?????????????????????#%[%??? #????? | | ?????????????????????k =*??? #????? | | ????????????????????## ??? #????? | | ?????????????????????# ??? #????? | | ?????????????????????# s ??? #????? | | ?????????????????????# ??? #????? | | ?????????????????????# ???? #????? | | ?????????????????????# ????????????? | | ??????????????????????? ????????????? | | ????????????????????????????????????? | | ????????????????????????????????????? | | ????????????????????????????????????? | | ????????????????????????????????????? | | ????????????????????????????????????? | | ????????????????????????????????????? | | ????????????????????????????????????? | | ????????????????????????????????????? | | ????????????????????????????????????? | +----------------------------------------------------+ Best States ------------- Heat Dissipation 28 Energy Generation 10 Energy Capacity 250 Matter Stores 300 Matter Capacity 300 Sight Range 16 Robot Scan Range 14 Terrain Scan Density 10 Armor Coverage 150 Evasion (%) 40 Recoil Reduction 2 Item Schematics ----------------- Imp. Treads | -9/Materials | Hacked Robot Schematics ------------------ None Fabricated ------------ Nothing Repaired ---------- Lgt. Treads | 82% | -10/Materials Alien Tech Used ----------------- None Achievements -------------- None Challenges ------------ None Game ------ Seed NeutrinoSalvagingSuite Manual? 0 Play Time 00:17:55 Cumulative 62.8 hours Start 2025.09.14 @ 17:58:09 End 2025.09.14 @ 18:09:11 Sessions 1 Manual Loads 0 Difficulty Rogue Special Mode None Game No. 124 Rogue 122 Adventurer 0 Explorer 2 Win Type - Total 0 Types 0/0/0/0/0/0/0/0/0/0 Lore% 26 Gallery% 41 Achievement% 39 Wizard Run 0 Options --------- Layout 2 ASCII 0 Keyboard 1 Movement Arrows Keybinds 0 Fullscreen 1 Font 28/SmallcapsGlow Map View 50x49 Zoom Use 0% Tactical HUD 1 Map Filters NONE Filters NONE Steam 1 RUN: 146ade51-a818-40bb-aae0-b0f115d718e4